[Event "WYCC 2018 G14"]
[Site "Halkidiki"]
[Date "2018.10.23"]
[Round "5"]
[White "Ehsani, Yassamin"]
[Black "Villanyi, Alexia"]
[Result "1-0"]
[ECO "B24"]
[WhiteElo "1875"]
[BlackElo "1709"]
[Annotator "NA"]
[PlyCount "131"]
[EventDate "2018.10.20"]
[EventType "swiss"]
[EventCountry "GRE"]
[SourceTitle "playchess.com"]
[Source "ChessBase"]
[SourceQuality "1"]
[TimeControl "40/5400+30:1800+30"]

1. e4 {[%emt 0:00:00]} c5 {[%emt 0:00:00]} 2. Nc3 {[%emt 0:00:00]} Nc6 {[%emt 0:00:00]} 3. Bb5 {[%emt 0:00:00]} Nd4 {[%emt 0:00:00]} 4. Bc4 {[%emt 0:00:00]} e6 {[%emt 0:01:15]} 5. Nge2 {[%emt 0:00:01]} Be7 {[%emt 0:05:08]} 6. d3 {[%emt 0:02:34]} a6 {[%emt 0:01:09]} 7. a4 {[%emt 0:03:35]} d6 {[%emt 0:03:02]} 8. O-O {[%emt 0:18:14]} Nf6 {[%emt 0:02:44]} 9. Nxd4 {[%emt 0:05:33]} cxd4 {[%emt 0:00:10]} 10. Ne2 {[%emt 0:00:33]} e5 {[%emt 0:04:32]} 11. c3 {[%emt 0:07:53]} dxc3 {[%emt 0:01:58]} 12. Nxc3 {[%emt 0:05:32]} Be6 {[%emt 0:05:54]} 13. Qb3 {[%emt 0:01:22]} Bxc4 {[%emt 0:01:03]} 14. dxc4 {[%emt 0:02:37]} Rb8 {[%emt 0:03:12]} 15. Be3 {[%emt 0:02:08]} Qd7 {[%emt 0:07:18]} 16. f3 {[%emt 0:02:38]} O-O {[%emt 0:02:31]} 17. Qa2 {[%emt 0:04:43]} Rfc8 {[%emt 0:02:49]} 18. b3 {[%emt 0:10:18]} Qc6 {[%emt 0:05:43]} 19. Qf2 {[%emt 0:01:19]} Bd8 {[%emt 0:01:49]} 20. Rfd1 {[%emt 0:05:11]} Ba5 {[%emt 0:05:24]} 21. Rac1 {[%emt 0:05:34]} Bb4 {[%emt 0:02:21]} 22. g3 {[%emt 0:02:51]} b6 23. Rd3 {[%emt 0:01:23]} Bc5 {[%emt 0:04:06]} 24. Rcd1 {[%emt 0:00:47]} Rd8 {[%emt 0:00:42]} 25. Nd5 {[%emt 0:01:57]} Nxd5 {[%emt 0:01:35]} 26. Rxd5 {[%emt 0:00:19]} Rd7 {[%emt 0:03:07]} 27. Qd2 {[%emt 0:01:03]} Rbd8 {[%emt 0:02:32]} 28. Kg2 {[%emt 0:01:27]} Bxe3 {[%emt 0:01:15]} 29. Qxe3 {[%emt 0:00:13]} f6 {[%emt 0:01:14]} 30. Qd3 {[%emt 0:02:00]} Kf7 {[%emt 0:01:49]} 31. h4 {[%emt 0:01:28]} Ke7 {[%emt 0:01:05]} 32. f4 {[%emt 0:02:15]} Qc7 {[%emt 0:02:33]} 33. f5 {[%emt 0:00:52]} Qc6 {[%emt 0:01:24]} 34. g4 {[%emt 0:00:32]} h6 {[%emt 0:00:29]} 35. Qd2 {[%emt 0:00:48]} Rh8 {[%emt 0:03:30]} 36. Kf3 {[%emt 0:01:20]} Qc7 {[%emt 0:01:06]} 37. Kg3 {[%emt 0:01:30]} Qb8 {[%emt 0:00:27]} 38. Kh2 {[%emt 0:02:17]} Qc7 {[%emt 0:00:24]} 39. Kh3 {[%emt 0:00:23]} Rdd8 {[%emt 0:00:39]} 40. Kg3 {[%emt 0:00:00]} Qb8 {[%emt 0:00:00]} 41. Kf3 {[%emt 0:02:11]} Qc7 {[%emt 0:01:18]} 42. Qg2 {[%emt 0:00:30]} Qb8 {[%emt 0:03:23]} 43. R1d3 {[%emt 0:10:41]} Qc7 {[%emt 0:02:10]} 44. Qd2 {[%emt 0:02:02]} Qb8 {[%emt 0:00:51]} 45. Qb2 {[%emt 0:01:12]} Qc7 {[%emt 0:00:24]} 46. Qa2 {[%emt 0:02:23]} Qb8 {[%emt 0:00:06]} 47. a5 {[%emt 0:02:34]} Qc7 {[%emt 0:02:01]} 48. Kg2 {[%emt 0:03:34]} Rd7 {[%emt 0:00:52]} 49. Qa3 {[%emt 0:01:13]} Rhd8 {[%emt 0:04:25]} 50. axb6 {[%emt 0:00:59]} Qxb6 {[%emt 0:00:13]} 51. Ra5 {[%emt 0:01:38]} Ra8 {[%emt 0:04:44]} 52. Rad5 {[%emt 0:00:34]} Rad8 {[%emt 0:00:16]} 53. Qa5 {[%emt 0:00:29]} Qxa5 {[%emt 0:00:42]} 54. Rxa5 {[%emt 0:00:34]} Ra7 {[%emt 0:00:20]} 55. Kf2 {[%emt 0:01:21]} Kd7 {[%emt 0:02:59]} 56. Ke2 {[%emt 0:00:38]} Kc6 {[%emt 0:00:39]} 57. b4 {[%emt 0:01:11]} Rdd7 {[%emt 0:01:59]} 58. Kd2 {[%emt 0:00:27]} Kb6 {[%emt 0:02:50]} 59. Kc3 {[%emt 0:01:48]} Rac7 {[%emt 0:01:29]} 60. Rad5 {[%emt 0:00:35]} Rc6 {[%emt 0:07:03]} 61. Kb3 {[%emt 0:00:47]} Kb7 {[%emt 0:10:11]} 62. c5 {[%emt 0:00:37]} Kc7 {[%emt 0:00:18]} 63. Ka4 {[%emt 0:00:42]} Kb7 {[%emt 0:08:38]} 64. Rxd6 {[%emt 0:00:56]} Rcxd6 {[%emt 0:00:14]} 65. Rxd6 {[%emt 0:00:15]} Rc7 {[%emt 0:00:58]} 66. Ka5 {[%emt 0:00:18]} 1-0

[Event "WYCC 2018 G14"]
[Site "Halkidiki"]
[Date "2018.10.23"]
[Round "5"]
[White "Behzad Nazif, Parva"]
[Black "Mocanu, Paula"]
[Result "1-0"]
[ECO "D35"]
[WhiteElo "1859"]
[BlackElo "1680"]
[Annotator "NA"]
[PlyCount "135"]
[EventDate "2018.10.20"]
[EventType "swiss"]
[EventCountry "GRE"]
[SourceTitle "playchess.com"]
[Source "ChessBase"]
[SourceQuality "1"]
[TimeControl "40/5400+30:1800+30"]

1. d4 {[%emt 0:00:00]} d5 {[%emt 0:00:00]} 2. c4 {[%emt 0:00:00]} e6 {[%emt 0:00:00]} 3. Nc3 {[%emt 0:00:00]} Nf6 {[%emt 0:00:00]} 4. cxd5 {[%emt 0:00:00]} exd5 {[%emt 0:00:00]} 5. Bg5 {[%emt 0:00:06]} c6 {[%emt 0:00:01]} 6. e3 {[%emt 0:00:05]} Be7 {[%emt 0:00:17]} 7. Bd3 {[%emt 0:00:07]} Ne4 {[%emt 0:01:33]} 8. Bxe7 {[%emt 0:00:32]} Qxe7 {[%emt 0:00:05]} 9. Nge2 {[%emt 0:01:21]} Bf5 {[%emt 0:02:14]} 10. Qc2 {[%emt 0:03:28]} Nd7 {[%emt 0:00:39]} 11. O-O {[%emt 0:02:20]} O-O {[%emt 0:03:14]} 12. Nf4 {[%emt 0:05:53]} Ndf6 {[%emt 0:04:18]} 13. Na4 {[%emt 0:09:52]} Bg6 {[%emt 0:04:55]} 14. Nxg6 {[%emt 0:01:03]} hxg6 {[%emt 0:05:15]} 15. Rfe1 {[%emt 0:04:02]} Rfe8 {[%emt 0:12:07]} 16. f3 {[%emt 0:04:59]} Ng5 {[%emt 0:04:34]} 17. Nc3 {[%emt 0:01:59]} Rad8 {[%emt 0:04:06]} 18. Qa4 {[%emt 0:05:12]} a6 {[%emt 0:04:53]} 19. Rad1 {[%emt 0:02:06]} Nh5 {[%emt 0:06:23]} 20. Qc2 {[%emt 0:02:29]} Nf6 {[%emt 0:03:23]} 21. Qf2 {[%emt 0:01:21]} Ne6 {[%emt 0:05:43]} 22. Bc2 {[%emt 0:03:39]} Qb4 {[%emt 0:01:37]} 23. Bb1 Qb6 {[%emt 0:09:14]} 24. a3 {[%emt 0:03:53]} a5 {[%emt 0:01:23]} 25. Ba2 {[%emt 0:04:35]} Qc7 26. e4 g5 {[%emt 0:21:02]} 27. exd5 {[%emt 0:09:44]} cxd5 {[%emt 0:00:54]} 28. Re5 {[%emt 0:01:28]} Qc6 {[%emt 0:00:53]} 29. Bb3 {[%emt 0:01:34]} Rf8 {[%emt 0:02:41]} 30. h3 g6 {[%emt 0:01:27]} 31. Qf1 {[%emt 0:08:32]} Kg7 {[%emt 0:02:02]} 32. Qb5 {[%emt 0:01:46]} Qxb5 {[%emt 0:00:15]} 33. Nxb5 {[%emt 0:00:06]} Kh6 {[%emt 0:00:48]} 34. Nc3 {[%emt 0:01:08]} Nf4 {[%emt 0:00:22]} 35. Kh2 {[%emt 0:01:09]} Rfe8 36. g3 {[%emt 0:00:53]} N4h5 {[%emt 0:01:07]} 37. Nxd5 {[%emt 0:01:57]} Nxd5 {[%emt 0:00:22]} 38. Bxd5 {[%emt 0:02:15]} Nf6 {[%emt 0:00:37]} 39. Rxe8 {[%emt 0:00:54]} Rxe8 {[%emt 0:00:06]} 40. Bc4 {[%emt 0:00:00]} Rc8 {[%emt 0:00:00]} 41. Bb3 {[%emt 0:01:36]} b5 {[%emt 0:00:56]} 42. Rd2 {[%emt 0:01:35]} Kg7 {[%emt 0:00:20]} 43. Kg2 Ne8 {[%emt 0:01:17]} 44. Kf2 {[%emt 0:08:56]} Nd6 45. Rc2 {[%emt 0:02:10]} Rxc2+ {[%emt 0:01:32]} 46. Bxc2 {[%emt 0:00:10]} Nc4 47. Bd3 Nxb2 {[%emt 0:03:56]} 48. Bxb5 {[%emt 0:00:36]} Nd1+ {[%emt 0:00:11]} 49. Ke1 {[%emt 0:01:09]} Ne3 {[%emt 0:02:00]} 50. Bd3 {[%emt 0:00:52]} Kf6 {[%emt 0:00:29]} 51. Kd2 {[%emt 0:00:22]} Nd5 {[%emt 0:00:27]} 52. Be4 {[%emt 0:01:27]} Nb6 {[%emt 0:01:23]} 53. Kc3 {[%emt 0:02:17]} Ke6 {[%emt 0:13:03]} 54. Bb1 {[%emt 0:03:38]} Nd5+ {[%emt 0:00:25]} 55. Kc4 Ne3+ {[%emt 0:00:47]} 56. Kc5 {[%emt 0:00:53]} Nf1 57. g4 Nd2 {[%emt 0:02:13]} 58. Ba2+ {[%emt 0:01:56]} Ke7 {[%emt 0:00:28]} 59. Bd5 {[%emt 0:00:45]} Nb1 {[%emt 0:00:52]} 60. a4 {[%emt 0:00:53]} Nc3 {[%emt 0:00:13]} 61. Bc6 {[%emt 0:00:19]} Ne2 {[%emt 0:00:15]} 62. d5 {[%emt 0:00:51]} Nf4 {[%emt 0:00:07]} 63. d6+ {[%emt 0:00:12]} Kd8 {[%emt 0:00:36]} 64. Kb6 {[%emt 0:00:11]} Nxh3 {[%emt 0:00:50]} 65. Kxa5 {[%emt 0:00:12]} f5 {[%emt 0:00:35]} 66. Kb6 {[%emt 0:01:23]} fxg4 {[%emt 0:00:20]} 67. fxg4 {[%emt 0:00:08]} Nf2 {[%emt 0:00:22]} 68. a5 {[%emt 0:00:44]} 1-0

[Event "WYCC 2018 G14"]
[Site "Halkidiki"]
[Date "2018.10.23"]
[Round "5"]
[White "Moracchini, Margaux"]
[Black "Dhyana Patel"]
[Result "0-1"]
[ECO "B22"]
[WhiteElo "1838"]
[BlackElo "2002"]
[Annotator "NA"]
[PlyCount "64"]
[EventDate "2018.10.20"]
[EventType "swiss"]
[EventCountry "GRE"]
[SourceTitle "playchess.com"]
[Source "ChessBase"]
[SourceQuality "1"]
[TimeControl "40/5400+30:1800+30"]

1. e4 {[%emt 0:00:00]} c5 {[%emt 0:00:00]} 2. c3 {[%emt 0:00:00]} d5 {[%emt 0:00:19]} 3. exd5 {[%emt 0:00:00]} Qxd5 {[%emt 0:00:26]} 4. d4 {[%emt 0:00:13]} Nc6 {[%emt 0:00:42]} 5. Nf3 {[%emt 0:00:16]} Bf5 {[%emt 0:01:35]} 6. Be3 {[%emt 0:00:53]} cxd4 {[%emt 0:00:54]} 7. Nxd4 {[%emt 0:00:55]} e6 {[%emt 0:02:11]} 8. Nxf5 {[%emt 0:10:35]} Qxf5 {[%emt 0:01:54]} 9. Bd3 {[%emt 0:09:12]} Qe5 {[%emt 0:03:11]} 10. O-O {[%emt 0:02:28]} O-O-O {[%emt 0:00:45]} 11. Qc2 {[%emt 0:00:54]} Nf6 {[%emt 0:00:32]} 12. h3 {[%emt 0:05:42]} (12. Qe2 $11 {remains equal.}) 12... Bd6 $17 {[%emt 0:01:44]} 13. g3 {[%emt 0:00:21]} Nd5 {[%emt 0:12:55]} 14. Bd4 {[%emt 0:04:04]} Qh5 {[%emt 0:01:07]} 15. Kg2 {[%emt 0:07:38]} Kb8 {[%emt 0:05:29]} 16. Be4 {[%emt 0:09:13]} Qg5 {[%emt 0:21:56]} 17. Kh2 {[%emt 0:12:36]} Bc7 {[%emt 0:13:58]} 18. Bc5 {[%emt 0:07:18]} f5 {[%emt 0:07:27]} 19. Bxd5 {[%emt 0:02:10]} Rxd5 {[%emt 0:00:08]} 20. f4 {[%emt 0:05:01]} Qh5 {[%emt 0:00:12]} 21. Be3 {[%emt 0:00:23]} Rhd8 {[%emt 0:00:14]} 22. Qf2 {[%emt 0:04:26]} b6 {[%emt 0:04:42]} 23. Nd2 {[%emt 0:00:57]} e5 {[%emt 0:00:40]} 24. Nf3 {[%emt 0:02:52]} exf4 {[%emt 0:01:04]} 25. gxf4 {[%emt 0:00:43]} g5 {[%emt 0:00:55]} 26. Nd4 {[%emt 0:00:36]} Nxd4 {[%emt 0:00:52]} 27. cxd4 {[%emt 0:00:48]} Re8 {[%emt 0:01:51]} 28. Qf3 {[%emt 0:01:18]} Qxf3 {[%emt 0:00:23]} 29. Rxf3 {[%emt 0:00:02]} Rxe3 {[%emt 0:00:00]} 30. Rxe3 {[%emt 0:00:00]} Bxf4+ {[%emt 0:00:00]} 31. Rg3 {[%emt 0:00:03]} Rxd4 {[%emt 0:00:06]} 32. Rf1 {[%emt 0:02:10]} Rd2+ {[%emt 0:00:34]} 0-1

[Event "WYCC 2018 G14"]
[Site "Halkidiki"]
[Date "2018.10.23"]
[Round "5"]
[White "Brunner, Sophia"]
[Black "Guo, Hazel"]
[Result "1/2-1/2"]
[ECO "A84"]
[WhiteElo "1812"]
[BlackElo "1262"]
[Annotator "NA"]
[PlyCount "84"]
[EventDate "2018.10.20"]
[EventType "swiss"]
[EventCountry "GRE"]
[SourceTitle "playchess.com"]
[Source "ChessBase"]
[SourceQuality "1"]
[TimeControl "40/5400+30:1800+30"]

1. d4 {[%emt 0:00:00]} e6 {[%emt 0:00:00]} 2. c4 {[%emt 0:00:27]} f5 {[%emt 0:00:00]} 3. Nc3 {[%emt 0:01:48]} Bb4 {[%emt 0:01:13]} 4. Nf3 {[%emt 0:03:39]} Nf6 {[%emt 0:02:40]} 5. Bg5 {[%emt 0:06:15]} b6 {[%emt 0:03:20]} 6. e3 {[%emt 0:03:44]} Bb7 {[%emt 0:01:04]} 7. Bd3 {[%emt 0:00:54]} O-O {[%emt 0:00:39]} 8. a3 {[%emt 0:01:22]} Bxc3+ {[%emt 0:00:06]} 9. bxc3 {[%emt 0:00:01]} d6 {[%emt 0:01:39]} 10. O-O {[%emt 0:04:16]} Nbd7 {[%emt 0:01:07]} 11. Nd2 {[%emt 0:06:58]} h6 {[%emt 0:03:04]} 12. Bxf6 {[%emt 0:03:54]} Qxf6 {[%emt 0:08:31]} 13. f3 {[%emt 0:15:54]} Rae8 {[%emt 0:07:48]} 14. Qa4 {[%emt 0:14:07]} Re7 {[%emt 0:06:10]} 15. Qxa7 {[%emt 0:13:39]} Rb8 {[%emt 0:12:03]} 16. Qa4 {[%emt 0:00:28]} Qg5 {[%emt 0:02:46]} 17. Rae1 {[%emt 0:02:25]} Qh5 {[%emt 0:15:17]} 18. Qc2 {[%emt 0:02:42]} Rf8 {[%emt 0:02:35]} 19. e4 {[%emt 0:06:47]} f4 {[%emt 0:02:33]} 20. Rf2 {[%emt 0:01:56]} e5 {[%emt 0:02:22]} 21. Nb3 {[%emt 0:02:18]} g5 {[%emt 0:01:43]} 22. c5 {[%emt 0:01:36]} bxc5 {[%emt 0:02:05]} 23. dxc5 {[%emt 0:00:06]} Nf6 {[%emt 0:00:43]} 24. Be2 {[%emt 0:03:03]} Qg6 {[%emt 0:01:28]} 25. Nd2 {[%emt 0:00:47]} h5 {[%emt 0:00:18]} 26. Qb3+ {[%emt 0:00:06]} Kh8 {[%emt 0:00:36]} 27. Qxb7 {[%emt 0:00:13]} g4 {[%emt 0:02:00]} 28. Rff1 {[%emt 0:01:15]} Rg7 {[%emt 0:01:40]} 29. Qb2 {[%emt 0:02:15]} h4 {[%emt 0:00:52]} 30. fxg4 {[%emt 0:00:27]} Nxg4 {[%emt 0:01:07]} 31. Bxg4 {[%emt 0:00:01]} Qxg4 {[%emt 0:00:10]} 32. Nf3 {[%emt 0:00:04]} Rfg8 {[%emt 0:02:39]} 33. Re2 {[%emt 0:01:34]} h3 {[%emt 0:00:58]} 34. Rff2 {[%emt 0:00:07]} hxg2 {[%emt 0:00:21]} 35. cxd6 {[%emt 0:01:17]} cxd6 {[%emt 0:00:34]} 36. c4 {[%emt 0:00:15]} Qh3 {[%emt 0:00:31]} 37. Qd2 {[%emt 0:00:57]} Rh7 {[%emt 0:00:49]} 38. Rxg2 {[%emt 0:00:44]} Qxf3 {[%emt 0:03:30]} 39. Rxg8+ {[%emt 0:00:07]} Kxg8 {[%emt 0:00:06]} 40. Rg2+ {[%emt 0:00:00]} Kh8 {[%emt 0:00:00]} 41. Qxd6 {[%emt 0:21:27]} Qe3+ {[%emt 0:01:37]} 42. Kh1 {[%emt 0:05:09]} Qe1+ {[%emt 0:00:11]} 1/2-1/2

[Event "WYCC 2018 G14"]
[Site "Halkidiki"]
[Date "2018.10.23"]
[Round "5"]
[White "Bardorz, Jana"]
[Black "Saraci, Rinesa"]
[Result "1-0"]
[ECO "C46"]
[WhiteElo "1810"]
[BlackElo "1138"]
[Annotator "NA"]
[PlyCount "117"]
[EventDate "2018.10.20"]
[EventType "swiss"]
[EventCountry "GRE"]
[SourceTitle "playchess.com"]
[Source "ChessBase"]
[SourceQuality "1"]
[TimeControl "40/5400+30:1800+30"]

1. e4 {[%emt 0:00:00]} e5 {[%emt 0:00:00]} 2. Nf3 {[%emt 0:00:00]} Nc6 {[%emt 0:00:00]} 3. Nc3 {[%emt 0:00:00]} Bc5 {[%emt 0:00:25]} 4. Nxe5 {[%emt 0:00:49]} Bxf2+ {[%emt 0:02:01]} 5. Kxf2 {[%emt 0:00:51]} Nxe5 {[%emt 0:00:58]} 6. d4 {[%emt 0:01:08]} Ng6 {[%emt 0:02:06]} 7. Bc4 {[%emt 0:03:50]} d6 {[%emt 0:01:24]} 8. Rf1 {[%emt 0:03:45]} Be6 {[%emt 0:04:45]} 9. Bb3 {[%emt 0:07:25]} Qe7 {[%emt 0:03:19]} 10. Kg1 {[%emt 0:05:50]} O-O-O {[%emt 0:02:44]} 11. d5 {[%emt 0:05:58]} Bd7 {[%emt 0:02:06]} 12. Qd4 {[%emt 0:01:45]} Kb8 {[%emt 0:12:59]} 13. Be3 {[%emt 0:04:35]} b6 {[%emt 0:06:22]} 14. Qxg7 {[%emt 0:07:01]} Rf8 {[%emt 0:08:13]} 15. Bd4 {[%emt 0:09:02]} f6 {[%emt 0:07:10]} 16. Qxe7 {[%emt 0:01:29]} N6xe7 {[%emt 0:01:23]} 17. Rf2 {[%emt 0:06:53]} Ng6 {[%emt 0:03:58]} 18. Raf1 {[%emt 0:02:00]} Ne5 {[%emt 0:01:17]} 19. Ne2 {[%emt 0:02:05]} h6 {[%emt 0:02:34]} 20. Ng3 {[%emt 0:04:27]} Be8 {[%emt 0:05:36]} 21. Nf5 {[%emt 0:02:31]} Rh7 {[%emt 0:01:58]} 22. c3 {[%emt 0:04:18]} Bg6 {[%emt 0:04:21]} 23. Bc2 {[%emt 0:03:21]} Bxf5 {[%emt 0:04:43]} 24. Rxf5 {[%emt 0:00:53]} Kc8 {[%emt 0:04:04]} 25. Bxe5 {[%emt 0:02:17]} dxe5 {[%emt 0:00:17]} 26. Rxe5 {[%emt 0:00:40]} Rhf7 {[%emt 0:03:17]} 27. Ref5 {[%emt 0:01:56]} Kd7 {[%emt 0:01:53]} 28. e5 {[%emt 0:01:46]} Ke8 {[%emt 0:02:41]} 29. Bd1 {[%emt 0:02:56]} Ke7 {[%emt 0:01:18]} 30. Bb3 {[%emt 0:01:41]} Rg7 {[%emt 0:00:41]} 31. Re1 {[%emt 0:03:27]} Kd8 {[%emt 0:01:53]} 32. d6 {[%emt 0:02:26]} cxd6 {[%emt 0:02:16]} 33. exd6 {[%emt 0:00:11]} Rg6 {[%emt 0:00:56]} 34. Ba4 {[%emt 0:02:53]} Rg5 {[%emt 0:01:13]} 35. d7 {[%emt 0:02:31]} Ne7 {[%emt 0:01:20]} 36. Rxg5 {[%emt 0:00:05]} fxg5 {[%emt 0:00:14]} 37. Rf1 {[%emt 0:01:02]} Rxf1+ {[%emt 0:00:45]} 38. Kxf1 {[%emt 0:00:05]} a6 {[%emt 0:00:08]} 39. c4 {[%emt 0:00:29]} Ng8 {[%emt 0:00:30]} 40. Kf2 {[%emt 0:00:00]} Nf6 {[%emt 0:00:00]} 41. Kf3 {[%emt 0:03:22]} h5 {[%emt 0:07:26]} 42. h3 {[%emt 0:02:08]} a5 {[%emt 0:04:01]} 43. a3 {[%emt 0:01:19]} Nxd7 {[%emt 0:04:00]} 44. Bxd7 {[%emt 0:00:18]} Kxd7 {[%emt 0:00:05]} 45. Ke4 {[%emt 0:00:08]} Ke6 {[%emt 0:03:48]} 46. b4 {[%emt 0:00:31]} a4 {[%emt 0:01:48]} 47. g4 {[%emt 0:00:38]} h4 {[%emt 0:00:25]} 48. c5 {[%emt 0:00:43]} bxc5 {[%emt 0:01:58]} 49. bxc5 {[%emt 0:00:07]} Kd7 {[%emt 0:00:53]} 50. Kf5 {[%emt 0:00:07]} Kc6 {[%emt 0:00:13]} 51. Kxg5 {[%emt 0:00:04]} Kxc5 {[%emt 0:00:13]} 52. Kxh4 {[%emt 0:00:05]} Kc4 {[%emt 0:00:14]} 53. g5 {[%emt 0:00:03]} Kb3 {[%emt 0:00:19]} 54. g6 {[%emt 0:00:04]} Kxa3 {[%emt 0:00:14]} 55. g7 {[%emt 0:00:05]} Kb2 {[%emt 0:00:22]} 56. g8=Q {[%emt 0:00:05]} a3 {[%emt 0:00:08]} 57. Kg5 {[%emt 0:00:08]} a2 {[%emt 0:00:19]} 58. Qxa2+ {[%emt 0:00:04]} Kxa2 {[%emt 0:00:11]} 59. h4 {[%emt 0:00:03]} 1-0

[Event "WYCC 2018 G14"]
[Site "Halkidiki"]
[Date "2018.10.23"]
[Round "5"]
[White "Zeng, Sheena"]
[Black "Sim, Jia Ru"]
[Result "1-0"]
[ECO "D21"]
[WhiteElo "1807"]
[BlackElo "1979"]
[Annotator "NA"]
[PlyCount "123"]
[EventDate "2018.10.20"]
[EventType "swiss"]
[EventCountry "GRE"]
[SourceTitle "playchess.com"]
[Source "ChessBase"]
[SourceQuality "1"]
[TimeControl "40/5400+30:1800+30"]

1. d4 {[%emt 0:00:00]} d5 {[%emt 0:00:00]} 2. c4 {[%emt 0:00:00]} dxc4 {[%emt 0:00:00]} 3. Nf3 {[%emt 0:00:00]} c5 {[%emt 0:00:00]} 4. e3 {[%emt 0:00:00]} cxd4 {[%emt 0:00:04]} 5. Bxc4 {[%emt 0:00:25]} Qc7 {[%emt 0:00:23]} 6. Qb3 {[%emt 0:00:53]} e6 {[%emt 0:00:15]} 7. exd4 {[%emt 0:00:24]} Nf6 {[%emt 0:01:02]} 8. O-O {[%emt 0:00:55]} Nc6 {[%emt 0:04:53]} 9. Nc3 {[%emt 0:03:06]} a6 {[%emt 0:00:53]} 10. Bd3 {[%emt 0:03:11]} Be7 {[%emt 0:01:58]} 11. h3 {[%emt 0:01:40]} O-O {[%emt 0:01:37]} 12. Be3 {[%emt 0:05:41]} Nb4 {[%emt 0:06:27]} 13. Bb1 {[%emt 0:02:30]} Nbd5 {[%emt 0:16:34]} 14. Nxd5 $11 {[%emt 0:04:43]} Nxd5 {[%emt 0:00:55]} 15. Be4 {[%emt 0:03:29]} Nf6 {[%emt 0:02:46]} 16. Bd3 {[%emt 0:02:11]} b5 {[%emt 0:02:08]} 17. Rac1 {[%emt 0:03:52]} Qd6 {[%emt 0:00:53]} 18. Ng5 {[%emt 0:05:02]} Bb7 {[%emt 0:08:29]} 19. f3 {[%emt 0:09:52]} h6 {[%emt 0:05:36]} 20. Ne4 {[%emt 0:00:18]} Qb8 {[%emt 0:01:59]} 21. Nxf6+ {[%emt 0:01:44]} Bxf6 {[%emt 0:00:17]} 22. Be4 {[%emt 0:00:27]} Rd8 {[%emt 0:01:42]} 23. Rfd1 {[%emt 0:02:17]} Bd5 {[%emt 0:12:33]} 24. Bxd5 {[%emt 0:02:54]} Rxd5 {[%emt 0:00:13]} 25. Rc5 {[%emt 0:00:50]} Rd7 {[%emt 0:00:11]} 26. Qc2 {[%emt 0:04:12]} Qd8 {[%emt 0:00:33]} 27. Qe4 {[%emt 0:01:15]} Qf8 {[%emt 0:03:32]} 28. a4 {[%emt 0:17:17]} Rb8 {[%emt 0:10:33]} 29. axb5 {[%emt 0:01:59]} axb5 {[%emt 0:01:27]} 30. Rdc1 {[%emt 0:01:55]} Qd8 {[%emt 0:02:10]} 31. Rd1 {[%emt 0:06:31]} Rd6 {[%emt 0:05:03]} 32. d5 {[%emt 0:05:08]} Bxb2 {[%emt 0:02:00]} 33. Bf4 {[%emt 0:00:17]} Rxd5 {[%emt 0:00:52]} 34. Rcxd5 {[%emt 0:05:11]} exd5 {[%emt 0:00:36]} 35. Qb4 {[%emt 0:00:22]} Qb6+ {[%emt 0:04:40]} 36. Kh1 {[%emt 0:00:33]} Rd8 {[%emt 0:01:04]} 37. Qxb2 {[%emt 0:00:08]} d4 {[%emt 0:00:06]} 38. Qb4 {[%emt 0:05:19]} d3 {[%emt 0:02:31]} 39. Qe4 {[%emt 0:00:51]} Rd4 {[%emt 0:01:58]} 40. Be3 {[%emt 0:00:00]} Rxe4 {[%emt 0:00:00]} 41. Bxb6 {[%emt 0:01:45]} Re6 {[%emt 0:00:40]} 42. Bc5 {[%emt 0:00:17]} Rc6 {[%emt 0:00:07]} 43. Bb4 {[%emt 0:00:40]} Rc4 {[%emt 0:00:09]} 44. Ba5 {[%emt 0:01:54]} Rd4 {[%emt 0:00:45]} 45. Kg1 {[%emt 0:00:18]} f5 {[%emt 0:00:45]} 46. Bc3 {[%emt 0:00:43]} Rd5 {[%emt 0:02:26]} 47. f4 {[%emt 0:00:17]} g5 {[%emt 0:01:50]} 48. fxg5 {[%emt 0:00:24]} hxg5 {[%emt 0:00:07]} 49. Kf2 {[%emt 0:00:07]} Kf7 {[%emt 0:02:04]} 50. Ke3 {[%emt 0:00:09]} f4+ {[%emt 0:06:24]} 51. Ke4 {[%emt 0:00:09]} Ke6 {[%emt 0:00:15]} 52. Rxd3 {[%emt 0:00:37]} Rxd3 {[%emt 0:06:33]} 53. Kxd3 {[%emt 0:00:05]} Kf5 {[%emt 0:00:10]} 54. Ke2 {[%emt 0:00:39]} g4 {[%emt 0:01:48]} 55. hxg4+ {[%emt 0:00:33]} Kxg4 {[%emt 0:00:05]} 56. Kf2 {[%emt 0:00:04]} Kg5 {[%emt 0:00:37]} 57. Kf3 {[%emt 0:00:13]} Kf5 {[%emt 0:00:28]} 58. Bd2 {[%emt 0:00:07]} Kg6 {[%emt 0:01:37]} 59. Kxf4 {[%emt 0:00:06]} Kf6 {[%emt 0:00:07]} 60. Bb4 {[%emt 0:00:11]} Kg6 {[%emt 0:00:09]} 61. Kg4 {[%emt 0:00:21]} Kf7 {[%emt 0:00:18]} 62. Kf5 {[%emt 0:00:35]} 1-0